bitfinex-derivatives/quotes_SOLF0:USTF0_20250509
["timestamp","ask_amount","ask_price","bid_price","bid_amount"]
[1746801052114,70.37267378,169.28,169.12,25.35267378]
[1746801052314,45.02,169.28,169.12,25.35267378]
[1746801052518,3.797,169.29,169.12,25.35267378]
[1746801052720,3.797,169.29,169.16,25.35267378]
[1746801053019,5.9076,169.27,169.17,94.6915]
[1746801053421,3.797,169.29,169.21,5.9094]
[1746801053618,3.797,169.29,169.18,1.8377]
[1746801054019,382.35267378,169.28,169.1,41.39]
[1746801054215,25.35267378,169.24,169.1,41.39]
[1746801054919,447.7,169.27,169.1,41.39]
[1746801055321,90.78,169.26,169.1,41.39]
[1746801055616,5.9091,169.23,169.1,41.39]
[1746801055918,357.0,169.27,169.1,41.39]
[1746801056119,401.84,169.27,169.19,5.9099]
[1746801056321,401.84,169.27,169.13,44.9]
[1746801056718,5.9096,169.21,169.13,44.9]
[1746801057019,401.84,169.27,169.13,44.9]
[1746801057219,5.9097,169.21,169.17,5.9107]
[1746801057415,401.84,169.27,169.11,47.3]
[1746801057618,5.9104,169.19,169.11,47.3]
[1746801057821,44.72,169.23,169.11,47.3]
[1746801058120,5.9091,169.23,169.19,5.9101]
[1746801058314,401.66,169.26,169.19,5.9101]
[1746801058518,401.66,169.26,169.11,47.3]
[1746801058715,70.03267378,169.28,169.11,47.3]
[1746801059317,48.657,169.29,169.11,47.3]
[1746801059521,93.317,169.29,169.11,47.3]
[1746801060022,44.86,169.33,169.13,25.35267378]
[1746801060223,25.35267378,169.3,169.13,25.35267378]
[1746801060420,1.9452,169.29,169.14,44.64]
[1746801060620,1.9452,169.29,169.15,44.86]
[1746801060820,5.9096,169.21,169.18,5.9105]
[1746801061021,1.9452,169.29,169.15,44.86]
[1746801061321,5.9098,169.21,169.18,5.9105]
[1746801061517,69.83267378,169.26,169.15,44.86]
[1746801062921,5.9083,169.25,169.15,44.86]
[1746801063219,5.9083,169.25,169.16,1.8275]
[1746801063424,44.86,169.27,169.16,1.8275]
[1746801063927,5.9089,169.23,169.19,5.9101]
[1746801064223,44.86,169.27,169.16,1.8275]
[1746801064426,5.9092,169.22,169.19,5.91]
[1746801064625,44.86,169.27,169.16,1.8275]
[1746801065220,357.0,169.28,169.16,63.8275]
[1746801065425,357.0,169.28,169.17,1.8244]
[1746801066030,357.0,169.28,169.26,5.9077]
[1746801066221,5.9069,169.29,169.19,44.24]
[1746801066524,3.8289,169.32,169.19,44.24]
[1746801066827,78.68028434,169.38,169.19,69.59267378]
[1746801066828,580.85267378,169.37,169.19,69.59267378]
[1746801067021,513.0994,169.37,169.19,69.59267378]
[1746801067223,5.9052,169.34,169.19,69.59267378]
[1746801067417,513.0994,169.37,169.2,11.8196]
[1746801067623,513.0994,169.37,169.28,5.9068]
[1746801067824,25.35267378,169.35,169.19,44.86]
[1746801068127,25.35267378,169.31,169.23,5.9086]
[1746801068324,25.35267378,169.31,169.19,44.86]
[1746801068828,401.24,169.32,169.19,44.86]
[1746801069028,25.35267378,169.29,169.19,44.86]
[1746801069225,3.8273,169.28,169.16,512.5475]
[1746801070816,5.9084,169.25,169.16,512.5475]
[1746801071021,3.8273,169.28,169.16,512.5475]
[1746801071223,25.35267378,169.26,169.16,512.5475]
[1746801071426,5.9095,169.21,169.18,5.9103]
[1746801071829,5.9094,169.22,169.19,5.9102]
[1746801072022,25.35267378,169.26,169.16,1.8275]
[1746801072221,3.8273,169.28,169.16,1.8275]
[1746801072422,3.8273,169.28,169.2,5.9098]
[1746801072623,3.8273,169.28,169.16,1.8275]
[1746801073225,44.22,169.31,169.16,1.8275]
[1746801073423,5.9069,169.29,169.16,1.8275]
[1746801073625,44.86,169.32,169.16,1.8275]
[1746801073827,122.90028434,169.33,169.16,3.0098126]
[1746801074029,84.58588434,169.33,169.18,25.35267378]
[1746801074220,78.68028434,169.33,169.19,556.8081]
[1746801074420,104.03295812,169.33,169.2,44.86]
[1746801074621,78.68028434,169.33,169.2,1.8269]
[1746801074824,78.68028434,169.33,169.21,89.08]
[1746801075026,5.9061,169.31,169.27,5.9071]
[1746801075326,78.68028434,169.33,169.21,89.08]
[1746801075532,3.8248,169.35,169.21,89.08]
[1746801076233,3.8248,169.35,169.22,62.0]
[1746801076531,1.9972,169.35,169.22,62.0]
[1746801076727,5.9049,169.35,169.31,5.9057]
[1746801077026,5.9049,169.35,169.22,62.0]
[1746801077233,50.764,169.37,169.33,5.9052]
[1746801077432,48.0895,169.4,169.33,5.9052]
[1746801077628,48.0895,169.4,169.28,2.0234]
[1746801077837,5.9046,169.36,169.28,2.0234]
[1746801078029,48.0895,169.4,169.28,2.0234]
[1746801078429,3.8695,169.4,169.28,2.0234]
[1746801078629,3.8695,169.4,169.28,4.0446]
[1746801079129,5.9041,169.37,169.29,1.8295]
[1746801079330,3.8695,169.4,169.29,1.8295]
[1746801079532,25.35267378,169.38,169.28,2.0234]
[1746801080135,3.8695,169.4,169.28,2.0234]
[1746801080329,25.35267378,169.38,169.28,2.0234]
[1746801080729,5.9067,169.29,169.23,48.6907]
[1746801080931,25.35267378,169.34,169.23,48.6907]
[1746801081229,5.9052,169.34,169.31,5.906]
[1746801081429,89.06,169.35,169.23,48.6907]
[1746801081935,69.55267378,169.38,169.23,48.6907]
[1746801082237,44.2,169.38,169.23,92.8907]
[1746801082535,25.35267378,169.35,169.23,48.6907]
[1746801082929,5.9061,169.31,169.23,48.6907]
[1746801083136,25.35267378,169.35,169.23,48.6907]
[1746801083334,25.35267378,169.31,169.23,44.84]
[1746801083535,69.55267378,169.31,169.2,1.8442]
[1746801083936,69.55267378,169.31,169.22,5.9089]
[1746801084133,69.55267378,169.31,169.2,1.8442]
[1746801084734,71.41327378,169.31,169.22,5.9089]
[1746801085034,5.9077,169.27,169.23,5.9087]
[1746801085235,1.8606,169.31,169.2,1.8442]
[1746801085535,446.06,169.35,169.2,1.8442]
[1746801085736,449.7915,169.35,169.2,1.8442]
[1746801086738,5.9064,169.3,169.2,1.8442]
[1746801086936,449.7915,169.35,169.2,1.8442]
[1746801087237,5.9064,169.3,169.26,5.9076]
[1746801087426,449.7915,169.35,169.26,5.9076]
[1746801087831,357.0,169.34,169.2,1.8442]
[1746801088029,25.35267378,169.29,169.17,3.7589]
[1746801088237,44.52,169.28,169.16,17.8676126]
[1746801088438,25.35267378,169.25,169.16,17.8676126]
[1746801088639,25.35267378,169.25,169.16,16.6853]
[1746801088941,25.35267378,169.25,169.18,5.9104]
[1746801089141,25.35267378,169.25,169.16,16.6853]
[1746801089434,25.35267378,169.25,169.16,14.77]
[1746801089637,357.0,169.24,169.16,14.77]
[1746801089840,5.9109,169.17,169.16,14.77]
[1746801090040,44.44,169.2,169.12,48.72]
[1746801090440,25.35267378,169.21,169.12,48.72]
[1746801090638,44.34,169.22,169.12,48.72]
[1746801090838,44.34,169.23,169.12,48.72]
[1746801091136,357.0,169.24,169.12,118.29267378]
[1746801091342,44.34,169.29,169.13,1.972]
[1746801091536,867.56,169.33,169.16,25.35267378]
[1746801091845,5.9066,169.3,169.26,5.9075]
[1746801092238,867.56,169.33,169.21,44.22]
[1746801092439,362.9054,169.33,169.21,44.22]
[1746801092640,17.96156212,169.34,169.22,1.9137]
[1746801092938,17.96156212,169.34,169.23,44.24]
[1746801093344,25.35267378,169.36,169.23,44.24]
[1746801095046,5.9053,169.33,169.29,5.9064]
[1746801095244,88.46,169.37,169.23,44.24]
[1746801095446,44.22,169.37,169.23,44.24]
[1746801095946,0.1906,169.41,169.24,510.54]
[1746801096154,0.1906,169.41,169.24,535.89267378]
[1746801096659,5.9045,169.36,169.24,510.54]
[1746801097554,5.904,169.37,169.24,510.54]
[1746801097757,5.904,169.37,169.33,5.9053]
[1746801098147,5.9036,169.38,169.3,44.22]
[1746801098455,44.22,169.42,169.31,3.9119]
[1746801098856,5.9033,169.39,169.34,5.9047]
[1746801099052,5.9033,169.39,169.31,3.9119]
[1746801099053,44.22,169.42,169.31,3.9119]
[1746801099355,5.9043,169.36,169.31,3.9119]
[1746801099856,5.9043,169.36,169.32,5.9055]
[1746801100051,5.9039,169.38,169.31,3.9119]
[1746801100256,44.22,169.42,169.31,3.9119]
[1746801100556,5.9041,169.37,169.31,3.9119]
[1746801100755,44.2,169.39,169.28,1.0]
[1746801100956,44.2,169.39,169.29,5.9066]
[1746801101159,44.2,169.39,169.28,1.0]
[1746801101359,44.2,169.39,169.29,41.34]
[1746801101763,25.35267378,169.37,169.29,41.34]
[1746801102054,44.3871,169.36,169.29,41.34]
[1746801102260,5.9063,169.3,169.29,41.34]
[1746801102660,5.9061,169.31,169.29,41.34]
[1746801102852,0.1871,169.36,169.29,41.34]
[1746801103157,470.75267378,169.37,169.29,47.2466]
[1746801103361,470.75267378,169.37,169.29,41.34]
[1746801104459,401.2,169.37,169.29,41.34]
[1746801104660,445.4,169.37,169.29,41.34]
[1746801104861,25.35267378,169.36,169.29,41.34]
[1746801105963,5.9063,169.3,169.29,41.34]
[1746801106164,25.35267378,169.36,169.29,41.34]
[1746801106658,357.0,169.37,169.29,41.34]
[1746801106854,445.4,169.37,169.29,41.34]
[1746801107257,401.2,169.37,169.29,41.34]
[1746801107664,5.9052,169.34,169.3,5.9063]
[1746801107857,401.2,169.37,169.29,41.34]
[1746801108759,5.9046,169.36,169.3,5.906]
[1746801109063,401.2,169.37,169.29,41.34]
[1746801109563,510.46,169.4,169.29,41.34]
[1746801109758,5.9036,169.38,169.34,5.9048]
[1746801110059,510.46,169.4,169.29,43.2631]
[1746801110359,25.35267378,169.39,169.29,41.34]
[1746801110554,25.35267378,169.39,169.29,47.2466]
[1746801110856,510.46,169.4,169.29,47.2466]
[1746801111056,5.9052,169.34,169.29,47.2466]
[1746801111253,510.46,169.4,169.29,41.34]
[1746801111763,535.81267378,169.4,169.29,47.2466]
[1746801111954,598.84,169.4,169.29,41.34]
[1746801112160,5.9041,169.37,169.29,41.34]
[1746801112360,598.84,169.4,169.29,41.34]
[1746801112659,5.9045,169.36,169.29,41.34]
[1746801112860,598.84,169.4,169.31,5.9059]
[1746801113161,598.84,169.4,169.29,41.34]
[1746801113365,598.84,169.4,169.31,5.9057]
[1746801113556,598.84,169.4,169.28,1.0]
[1746801113760,598.84,169.4,169.3,5.906]
[1746801113958,598.84,169.4,169.28,1.0]
[1746801114158,624.19267378,169.4,169.28,1.0]
[1746801114664,598.84,169.4,169.28,1.0]
[1746801115164,598.84,169.4,169.32,5.9054]
[1746801115863,598.84,169.4,169.33,5.905]
[1746801116362,554.66,169.4,169.34,53.1447]
[1746801117067,5.9041,169.37,169.34,47.24]
[1746801117267,357.0,169.42,169.34,47.24]
[1746801117469,88.34,169.45,169.34,47.24]
[1746801117666,5.9032,169.39,169.34,47.24]
[1746801117964,44.18,169.43,169.34,47.24]
[1746801118467,44.16,169.45,169.34,47.24]
[1746801118666,5.9026,169.41,169.36,5.904]
[1746801118857,44.16,169.45,169.34,47.24]
[1746801119063,25.35267378,169.4,169.34,47.24]
[1746801119265,5.9046,169.35,169.34,37.5612]
[1746801119567,445.34,169.39,169.32,41.34]
[1746801119568,470.88147378,169.39,169.32,41.34]
[1746801120262,5.9053,169.33,169.32,41.34]
[1746801120772,5.9053,169.33,169.24,1.43]
[1746801120773,5.9081,169.25,169.24,1.43]
[1746801120966,44.16,169.27,169.18,1.919]
[1746801121166,5.9098,169.21,169.16,9.7109]
[1746801121668,44.16,169.26,169.16,3.8]
[1746801121869,25.35267378,169.25,169.15,44.16]
[1746801122064,25.35267378,169.25,169.11,3.8]
[1746801122564,892.63267378,169.28,169.11,3.8]
[1746801122565,25.35267378,169.23,169.11,3.8]
[1746801122765,25.35267378,169.23,169.11,9.7127]
[1746801123064,25.35267378,169.23,169.11,3.8]
[1746801123269,88.34,169.22,169.11,3.8]
[1746801123466,88.34,169.24,169.11,3.8]
[1746801123767,88.34,169.24,169.12,9.5]
[1746801125370,357.0,169.3,169.15,25.35267378]
[1746801125574,88.34,169.32,169.15,25.35267378]
[1746801125575,88.34,169.32,169.16,44.16]
[1746801125762,88.34,169.32,169.17,44.18]
[1746801125968,88.34,169.32,169.18,1.9834]
[1746801126271,510.42,169.37,169.21,25.35267378]
[1746801126469,510.42,169.37,169.29,5.9065]
[1746801126670,25.35267378,169.36,169.22,3.8588]
[1746801127372,510.42,169.37,169.22,3.8588]
[1746801127571,5.906,169.31,169.22,3.8588]
[1746801127771,25.35267378,169.36,169.22,3.8588]
[1746801127971,25.35267378,169.36,169.3,5.9063]
[1746801128171,554.6,169.37,169.3,5.9063]
[1746801128873,5.9048,169.35,169.3,5.9063]
[1746801129072,554.6,169.37,169.31,5.9059]
[1746801129275,44.18,169.39,169.25,88.36]
[1746801129675,44.16,169.42,169.25,113.71267378]
[1746801129878,5.9029,169.4,169.25,113.71267378]
[1746801130170,44.16,169.42,169.25,88.36]
[1746801130377,5.9033,169.39,169.25,113.71267378]
[1746801130578,44.16,169.42,169.25,113.71267378]
[1746801130873,5.9054,169.33,169.26,44.18]
[1746801131086,44.16,169.42,169.32,5.9056]
[1746801131576,25.35267378,169.39,169.27,1.9394]
[1746801131777,510.52,169.48,169.27,1.9394]
[1746801131972,5.9034,169.39,169.27,1.9394]
[1746801132179,25.35267378,169.45,169.28,25.35267378]
[1746801132375,401.18,169.47,169.29,62.0]
[1746801132575,5.9016,169.44,169.32,25.35267378]
[1746801132886,44.18,169.52,169.33,92.29]
[1746801133080,44.18,169.52,169.36,25.35267378]
[1746801133383,510.46,169.56,169.4,25.35267378]
[1746801133683,510.46,169.56,169.41,88.34]
[1746801133883,5.8986,169.53,169.41,88.34]
[1746801134079,354.76007219,169.57,169.42,1.988]
[1746801134287,266.42007219,169.57,169.53,5.8983]
[1746801134493,5.8966,169.58,169.53,5.8983]
[1746801134781,84.57608434,169.61,169.56,5.8972]
[1746801134991,84.57608434,169.61,169.49,44.18]
[1746801134992,78.68028434,169.61,169.49,46.0736]
[1746801135181,72.61488434,169.61,169.49,46.0736]
[1746801135384,66.54948434,169.61,169.52,25.35267378]
[1746801135679,66.54948434,169.61,169.52,44.14]
[1746801135887,66.54948434,169.61,169.52,106.14]
[1746801136584,66.54948434,169.61,169.52,131.49267378]
[1746801136787,44.16,169.73,169.56,25.35267378]
[1746801137093,44.16,169.73,169.57,44.16]
[1746801137384,44.16,169.73,169.58,44.14]
[1746801137987,44.16,169.73,169.62,5.8951]
[1746801138391,25.35267378,169.7,169.53,510.26]
[1746801138683,69.45267378,169.7,169.54,88.24]
[1746801138888,25.35267378,169.66,169.53,510.26]
[1746801139089,5.8955,169.62,169.53,510.26]
[1746801139392,69.49267378,169.66,169.18,262.07352885]
[1746801139393,44.14,169.66,169.5,44.1]
[1746801139985,25.35267378,169.65,169.46,62.0]
[1746801140185,44.1,169.64,169.47,88.24]
[1746801140388,45.9621,169.64,169.48,1.8315]
[1746801140789,3.7146,169.63,169.48,1.8315]
[1746801141088,3.7146,169.63,169.49,1.18001062]
[1746801141687,25.35267378,169.61,169.49,1.18001062]
[1746801141891,44.12,169.6,169.49,1.18001062]
[1746801142092,401.12,169.6,169.49,1.18001062]
[1746801142394,5.8994,169.5,169.49,1.18001062]
[1746801142596,69.47267378,169.53,169.42,44.12]
[1746801142896,25.35267378,169.53,169.43,1.18042849]
[1746801143194,3.7369,169.52,169.43,1.18042849]
[1746801143393,5.9002,169.48,169.43,1.18042849]
[1746801143594,3.7369,169.52,169.43,1.18042849]
[1746801143995,5.8994,169.5,169.43,7.08192849]
[1746801144197,3.7369,169.52,169.43,1.18042849]
[1746801144798,5.6821,169.52,169.4,44.08]
[1746801144995,5.6821,169.52,169.47,5.9002]
[1746801145294,44.12,169.54,169.4,44.08]
[1746801145492,44.12,169.54,169.49,5.8994]
[1746801145896,5.6763,169.59,169.47,44.08]
[1746801146294,5.6763,169.59,169.46,1.8216]
[1746801147595,1.8504,169.59,169.47,30.21]
[1746801147800,44.12,169.6,169.47,30.21]
[1746801148098,47.9148,169.65,169.48,25.35267378]
[1746801148294,45.9656,169.65,169.48,29.25977378]
[1746801149103,1.8738,169.66,169.52,25.35267378]
[1746801149404,44.06,169.7,169.56,25.35267378]
[1746801149598,44.06,169.7,169.57,1.8427]
[1746801149998,44.06,169.7,169.57,45.9027]
[1746801150298,44.06,169.7,169.57,1.8427]
[1746801150498,44.06,169.7,169.57,45.9027]
[1746801150902,5.8947,169.64,169.59,5.8962]
[1746801151101,44.06,169.7,169.57,1.8427]
[1746801151395,25.35267378,169.68,169.56,88.12]
[1746801151599,5.8947,169.64,169.56,88.12]
[1746801152102,25.35267378,169.68,169.56,88.12]
[1746801152800,25.35267378,169.68,169.56,49.9572]
[1746801153002,25.35267378,169.68,169.56,44.06]
[1746801153703,44.06,169.69,169.56,44.06]
[1746801154006,44.06,169.7,169.57,44.04]
[1746801154498,5.8935,169.67,169.57,44.04]
[1746801155206,44.06,169.7,169.57,44.04]
[1746801155405,25.35267378,169.68,169.53,49.1948]
[1746801155606,25.35267378,169.68,169.59,5.8961]
[1746801155807,25.35267378,169.68,169.54,88.08]
[1746801156007,25.35267378,169.68,169.57,5.8968]
[1746801156207,25.35267378,169.68,169.54,88.08]
[1746801156407,44.06,169.7,169.54,88.08]
[1746801156709,25.35267378,169.68,169.58,5.8965]
[1746801156913,25.35267378,169.68,169.53,49.1948]
[1746801157104,25.35267378,169.68,169.57,5.8969]
[1746801157300,5.8951,169.63,169.53,137.2548]
[1746801157503,25.35267378,169.68,169.53,137.2548]
[1746801157704,25.35267378,169.68,169.6,5.8957]
[1746801157909,25.35267378,169.68,169.53,137.2548]
[1746801158408,5.8946,169.64,169.53,137.2548]
[1746801158608,25.35267378,169.68,169.53,137.2548]
[1746801158908,5.8949,169.63,169.57,5.8967]
[1746801159107,25.35267378,169.68,169.53,137.2548]
[1746801160107,25.35267378,169.68,169.53,49.1948]
[1746801160405,25.35267378,169.68,169.53,137.2348]
[1746801160601,5.8962,169.6,169.55,5.8975]
[1746801160797,44.0,169.65,169.53,137.2348]
[1746801161008,5.8952,169.62,169.58,5.8965]
[1746801161209,44.0,169.65,169.53,94.2348]
[1746801161502,5.895,169.63,169.59,5.8962]
[1746801161709,357.0,169.68,169.53,94.2348]
[1746801161911,44.06,169.7,169.53,94.2348]
[1746801162208,88.06,169.7,169.53,94.2348]
[1746801162411,25.35267378,169.68,169.54,88.04]
[1746801162605,25.35267378,169.68,169.58,5.8965]
[1746801162801,25.35267378,169.68,169.54,118.29]
[1746801163000,25.35267378,169.68,169.58,5.8965]
[1746801163302,88.06,169.7,169.54,30.25]
[1746801163501,5.8948,169.64,169.59,5.8959]
[1746801163706,25.35267378,169.69,169.54,30.25]
[1746801164311,25.35267378,169.65,169.54,30.25]
[1746801164514,91.8572,169.64,169.54,30.25]
[1746801165014,25.35267378,169.61,169.54,30.25]
[1746801165310,1.8831,169.6,169.54,30.25]
[1746801165509,5.8976,169.55,169.54,30.25]
[1746801166609,5.898,169.54,169.53,48.18]
[1746801167005,25.35267378,169.57,169.48,9.5]
[1746801167721,5.8997,169.49,169.48,9.5]
[1746801167919,25.35267378,169.57,169.48,9.5]
[1746801168417,357.0,169.56,169.36,131.39267378]
[1746801168620,357.0,169.56,169.4,3.8259]
[1746801169222,1.9729,169.55,169.4,3.8259]
[1746801169926,357.0,169.56,169.4,3.8259]
[1746801169927,357.0,169.56,169.4,73.13857378]
[1746801170523,357.0,169.56,169.48,5.8998]
[1746801170716,357.0,169.56,169.43,44.04]
[1746801171618,5.899,169.52,169.47,5.9001]
[1746801172024,357.0,169.56,169.43,44.04]
[1746801173724,5.898,169.55,169.51,5.8988]
[1746801173919,357.0,169.56,169.43,44.04]
[1746801174422,49.957,169.57,169.44,25.35267378]
[1746801174628,88.02,169.62,169.44,25.35267378]
[1746801174924,88.02,169.62,169.45,2.0157]
[1746801175126,88.02,169.62,169.46,43.96]
[1746801175322,88.0,169.62,169.46,43.96]
[1746801175517,5.8967,169.58,169.47,62.0]
[1746801175724,88.0,169.62,169.47,62.0]
[1746801176821,5.8982,169.54,169.5,5.8993]
[1746801177127,88.0,169.62,169.46,43.96]
[1746801177428,25.35267378,169.57,169.45,2.0157]
[1746801177726,5.8997,169.49,169.46,5.9007]
[1746801177917,89.7929,169.56,169.45,2.0157]
[1746801178827,5.8993,169.51,169.47,5.9004]
[1746801179026,89.7929,169.56,169.45,2.0157]
[1746801179225,87.86,169.56,169.45,2.0157]
[1746801179427,27.28557378,169.6,169.45,2.0157]
[1746801179728,1.9329,169.6,169.46,62.0]
[1746801179929,5.8973,169.56,169.53,5.898]
[1746801180127,1.9329,169.6,169.46,62.0]
[1746801180326,1.9329,169.6,169.49,5.8996]
[1746801180531,27.28557378,169.6,169.45,2.0157]
[1746801180827,27.28557378,169.6,169.47,5.9004]
[1746801181027,357.0,169.59,169.45,2.0157]
[1746801181522,27.28557378,169.6,169.45,2.0157]
[1746801181523,1.9329,169.6,169.45,2.0157]
[1746801182126,1.9329,169.6,169.48,5.9]
[1746801182320,1.9329,169.6,169.45,89.8557]
[1746801183430,1.9329,169.6,169.46,62.0]
[1746801183727,5.8976,169.56,169.46,62.0]
[1746801183928,1.9329,169.6,169.46,62.0]
[1746801184925,27.28557378,169.6,169.45,2.0157]
[1746801185531,27.28557378,169.6,169.49,5.8997]
[1746801185732,27.28557378,169.6,169.45,2.0157]
[1746801186028,45.8729,169.6,169.45,2.0157]
[1746801186233,43.94,169.6,169.45,2.0157]
[1746801186926,43.94,169.6,169.46,87.82]
[1746801187231,357.0,169.61,169.47,11.8008]
[1746801187427,357.0,169.61,169.49,25.35267378]
[1746801187626,357.0,169.61,169.58,5.8963]
[1746801187827,25.35267378,169.64,169.5,65.734]
[1746801188027,402.9231,169.65,169.5,3.734]
[1746801189037,5.8961,169.6,169.57,5.8967]
[1746801189534,402.9231,169.65,169.5,3.734]
[1746801190133,5.8961,169.6,169.57,5.8967]
[1746801190333,358.9831,169.65,169.5,3.734]
[1746801190632,357.0,169.65,169.5,3.734]
[1746801191133,357.0,169.65,169.51,87.76]
[1746801191433,5.8961,169.6,169.57,5.8967]
[1746801191733,357.0,169.65,169.51,87.76]
[1746801191936,5.8957,169.61,169.51,87.76]
[1746801192233,357.0,169.65,169.51,87.76]
[1746801192440,5.8957,169.61,169.58,5.8965]
[1746801192633,43.92,169.66,169.52,11.7973]
[1746801192931,5.8937,169.67,169.64,5.8943]
[1746801193131,43.92,169.7,169.57,113.11267378]
[1746801193534,49.8125,169.7,169.67,5.8931]
[1746801194030,43.92,169.7,169.69,5.8928]
[1746801194240,509.6,169.74,169.69,5.8928]
[1746801194533,509.6,169.74,169.63,43.82]
[1746801194735,5.8928,169.69,169.65,5.8941]
[1746801194932,509.6,169.74,169.59,65.8866]
[1746801195241,509.6,169.74,169.6,87.74]
[1746801195833,5.8923,169.71,169.61,1.9471]
[1746801196133,509.6,169.74,169.61,1.9471]
[1746801196735,5.8934,169.68,169.64,5.8943]
[1746801197034,5.8934,169.68,169.61,1.9471]
[1746801197035,509.6,169.74,169.61,1.9471]
[1746801197235,5.8934,169.68,169.61,1.9471]
[1746801197535,509.6,169.74,169.61,1.9471]
[1746801197742,509.6,169.74,169.63,5.8946]
[1746801198237,509.6,169.74,169.61,1.9471]
[1746801198839,5.8921,169.71,169.61,1.9471]
[1746801199039,509.6,169.74,169.61,1.9471]
[1746801199333,509.6,169.74,169.67,5.8934]
[1746801199539,509.6,169.74,169.61,1.9471]
[1746801199937,509.6,169.74,169.68,5.893]
[1746801200437,509.6,169.74,169.61,1.9471]
[1746801200438,515.4913,169.74,169.71,5.892]
[1746801200630,49.7104,169.75,169.64,43.76]
[1746801200829,43.92,169.75,169.64,43.76]
[1746801201028,5.8911,169.74,169.64,43.76]
[1746801201233,43.92,169.75,169.64,43.76]
[1746801201534,43.92,169.75,169.71,5.8918]
[1746801201735,43.92,169.75,169.64,43.76]
[1746801202040,5.8911,169.74,169.71,5.8918]
[1746801202239,43.9,169.8,169.66,43.9]
[1746801202736,43.9,169.8,169.76,5.8901]
[1746801202937,43.9,169.8,169.7,43.74]
[1746801203137,5.8898,169.78,169.75,5.8907]
[1746801203541,43.9,169.8,169.71,5.6384]
[1746801203837,357.0,169.83,169.75,5.8904]
[1746801204037,382.35267378,169.82,169.57,11.7935]
[1746801204245,357.0,169.81,169.65,1.8671]
[1746801204436,25.35267378,169.8,169.65,1.8671]
[1746801204637,47.7031,169.79,169.65,1.8671]
[1746801204936,43.72,169.78,169.67,5.8932]
[1746801205140,43.72,169.78,169.62,91.3913]
[1746801205343,25.35267378,169.76,169.62,91.3913]
[1746801205541,25.35267378,169.76,169.62,47.6713]
[1746801205931,5.8937,169.67,169.62,43.9]
[1746801206137,43.9,169.73,169.62,43.9]
[1746801206536,43.9,169.73,169.65,5.894]
[1746801206739,43.9,169.73,169.62,43.9]
[1746801207140,5.8933,169.68,169.64,5.8942]
[1746801207340,43.9,169.73,169.62,43.9]
[1746801207639,5.893,169.69,169.65,5.894]
[1746801207839,43.9,169.73,169.65,5.894]
[1746801208442,43.9,169.73,169.66,5.8938]
[1746801208941,5.8927,169.7,169.66,5.8938]
[1746801209242,43.9,169.73,169.62,43.9]
[1746801209440,5.8921,169.71,169.62,43.9]
[1746801209642,43.9,169.73,169.62,43.9]
[1746801209942,5.8923,169.71,169.62,43.9]
[1746801210145,43.9,169.73,169.62,43.9]
[1746801210445,357.0,169.75,169.62,43.9]